fUSD/lending_fUSD_20260517
["ID","MTS","AMOUNT","RATE_DAILY","PERIOD"]
[422468454,1778970654000,-151.0,0.00039855,7]
[422468451,1778970654000,-151.0,0.00039855,7]
[422468455,1778970654000,-200.0,0.00039855,7]
[422468453,1778970654000,-500.0,0.00039855,7]
[422468452,1778970654000,-200.0,0.00039855,7]
[422468448,1778970654000,-151.0,0.00039855,7]
[422468456,1778970654000,-540.21980902,0.00039855,7]
[422468462,1778970654000,-151.0,0.00039855,7]
[422468459,1778970654000,-151.0,0.00039855,7]
[422468461,1778970654000,-500.0,0.00039855,7]
[422468464,1778970654000,-152.0,0.00039855,7]
[422468460,1778970654000,-151.0,0.00039855,7]
[422468457,1778970654000,-151.0,0.00039855,7]
[422468465,1778970654000,-500.0,0.00039855,7]
[422468468,1778970654000,-152.0,0.00039855,7]
[422468470,1778970654000,-152.0,0.00039855,7]
[422468469,1778970654000,-440.13154347,0.00039855,7]
[422468463,1778970654000,-500.0,0.00039855,7]
[422468458,1778970654000,-168.82441293,0.00039855,7]
[422468466,1778970654000,-152.0,0.00039855,7]
[422468467,1778970654000,-500.0,0.00039855,7]
[422468472,1778970654000,-152.0,0.00039855,7]
[422468479,1778970654000,-181.08010149,0.00039855,7]
[422468474,1778970654000,-152.0,0.00039855,7]
[422468473,1778970654000,-152.0,0.00039855,7]
[422468471,1778970654000,-152.0,0.00039855,7]
[422468475,1778970654000,-152.0,0.00039855,7]
[422468477,1778970654000,-152.0,0.00039855,7]
[422468508,1778970654000,-1540.0,0.00039856,7]
[422468554,1778970654000,-2000.0,0.0003994,119]
[422468509,1778970654000,-151.0,0.00039856,7]
[422468549,1778970654000,-150.0,0.00039918,2]
[422468555,1778970654000,-2000.0,0.0003994,119]
[422468559,1778970654000,-535.0,0.00039952,16]
[422468556,1778970654000,-2000.0,0.0003994,119]
[422468548,1778970654000,-798.25269025,0.00039913,7]
[422468550,1778970654000,-1000.0,0.00039919,90]
[422468557,1778970654000,-1000.0,0.00039941,112]
[422468553,1778970654000,-2000.0,0.0003994,119]
[422468558,1778970654000,-1000.0,0.0003995,16]
[422468551,1778970654000,-1000.0,0.00039939,119]
[422468552,1778970654000,-2000.0,0.0003994,119]
[422468564,1778970654000,-200.0,0.0003997,2]
[422468562,1778970654000,-200.0,0.0003997,2]
[422468565,1778970654000,-200.0,0.0003997,2]
[422468560,1778970654000,-228.26953422,0.00039959,2]
[422468563,1778970654000,-2000.0,0.0003997,2]
[422468566,1778970654000,-200.0,0.0003997,2]
[422468567,1778970654000,-1502.97865337,0.00039976,7]
[422468568,1778970654000,-603.78610069,0.00039986,90]
[422468570,1778970654000,-1000.0,0.00039994,90]
[422468569,1778970654000,-4725.51658682,0.00039986,120]
[422468561,1778970654000,-1000.0,0.00039969,2]
[422468572,1778970654000,-3163.47353179,0.00039999,2]
[422468571,1778970654000,-151.0,0.00039997,14]
[422468573,1778970654000,-283.61,0.0004,90]
[422468575,1778970654000,-10103.99964639,0.0004,4]
[422468577,1778970654000,-1058.96655933,0.0004,20]
[422468515,1778970654000,-151.0,0.00039856,7]
[422468574,1778970654000,-2101.32666991,0.0004,2]
[422468546,1778970654000,-194.168,0.000399,41]
[422468545,1778970654000,-200.0,0.000399,10]
[422468576,1778970654000,-1013.18177362,0.0004,7]
[422468547,1778970654000,-200.0,0.000399,19]
[422468544,1778970654000,-212.94,0.000399,24]
[422468510,1778970654000,-1540.0,0.00039856,7]
[422468513,1778970654000,-151.0,0.00039856,7]
[422468518,1778970654000,-1540.0,0.00039856,7]
[422468514,1778970654000,-1540.0,0.00039856,7]
[422468511,1778970654000,-151.0,0.00039856,7]
[422468521,1778970654000,-1540.0,0.00039856,7]
[422468516,1778970654000,-1540.0,0.00039856,7]
[422468533,1778970654000,-150.0,0.0003987,2]
[422468524,1778970654000,-1540.0,0.00039856,7]
[422468525,1778970654000,-1540.0,0.00039856,7]
[422468522,1778970654000,-1540.0,0.00039856,7]
[422468523,1778970654000,-1540.0,0.00039856,7]
[422468530,1778970654000,-10851.217398,0.00039857,120]
[422468529,1778970654000,-235.51572405,0.00039856,7]
[422468512,1778970654000,-1540.0,0.00039856,7]
[422468532,1778970654000,-150.0,0.0003987,2]
[422468531,1778970654000,-150.0,0.0003987,2]
[422468542,1778970654000,-309.36,0.000399,49]
[422468541,1778970654000,-1000.0,0.00039899,49]
[422468537,1778970654000,-1000.0,0.00039874,90]
[422468535,1778970654000,-150.0,0.0003987,2]
[422468538,1778970654000,-1000.0,0.00039876,15]
[422468536,1778970654000,-150.0,0.0003987,2]
[422468543,1778970654000,-160.0,0.000399,49]
[422468534,1778970654000,-150.0,0.0003987,2]
[422468539,1778970654000,-1000.0,0.00039899,20]
[422468540,1778970654000,-1000.0,0.00039899,14]
[422468526,1778970654000,-1540.0,0.00039856,7]
[422468528,1778970654000,-154.0,0.00039856,7]
[422468527,1778970654000,-1678.50576064,0.00039856,7]
[422468617,1778970655000,-195.276238,0.0004,30]
[422468627,1778970655000,-1402.46752,0.0004,30]
[422468620,1778970655000,-167.32677,0.0004,30]
[422468618,1778970655000,-10509.51924709,0.0004,5]
[422468626,1778970655000,-1402.46752,0.0004,30]
[422468625,1778970655000,-151.0,0.0004,30]
[422468609,1778970655000,-199.293253,0.0004,30]
[422468616,1778970655000,-195.276238,0.0004,30]
[422468612,1778970655000,-2123.786567,0.0004,30]
[422468604,1778970655000,-215.03962261,0.0004,3]
[422468623,1778970655000,-167.32677,0.0004,30]
[422468619,1778970655000,-300.0,0.0004,10]
[422468615,1778970655000,-195.276238,0.0004,30]
[422468628,1778970655000,-1402.46752,0.0004,30]
[422468622,1778970655000,-167.32677,0.0004,30]
[422468621,1778970655000,-167.32677,0.0004,30]
[422468629,1778970655000,-374.778137,0.0004,30]
[422468639,1778970655000,-305.660067,0.0004,30]
[422468640,1778970655000,-463.691199,0.0004,30]
[422468631,1778970655000,-374.778137,0.0004,30]
[422468632,1778970655000,-374.778137,0.0004,30]
[422468630,1778970655000,-374.778137,0.0004,30]
[422468633,1778970655000,-279.30719,0.0004,28]
[422468634,1778970655000,-279.30719,0.0004,28]
[422468635,1778970655000,-279.30719,0.0004,28]
[422468637,1778970655000,-305.660067,0.0004,30]
[422468611,1778970655000,-2123.786567,0.0004,30]
[422468638,1778970655000,-305.660067,0.0004,30]
[422468624,1778970655000,-1402.46752,0.0004,30]
[422468610,1778970655000,-2123.786567,0.0004,30]
[422468590,1778970655000,-319.68727725,0.0004,2]
[422468613,1778970655000,-2123.786567,0.0004,30]
[422468636,1778970655000,-279.30719,0.0004,28]
[422468585,1778970655000,-584.00978238,0.0004,5]
[422468586,1778970655000,-1708.60126756,0.0004,2]
[422468587,1778970655000,-5000.00279003,0.0004,90]
[422468588,1778970655000,-39702.65356506,0.0004,10]
[422468583,1778970655000,-4177.65755991,0.0004,2]
[422468578,1778970655000,-24144.10506724,0.0004,2]
[422468581,1778970655000,-14213.95,0.0004,120]
[422468580,1778970655000,-1586.33612459,0.0004,2]
[422468579,1778970655000,-396.50050032,0.0004,2]
[422468584,1778970655000,-41315.4172619,0.0004,10]
[422468589,1778970655000,-37373.57544143,0.0004,10]
[422468594,1778970655000,-4000.0,0.0004,14]
[422468602,1778970655000,-648.6076779,0.0004,30]
[422468593,1778970655000,-10865.93366069,0.0004,2]
[422468591,1778970655000,-3000.0,0.0004,7]
[422468596,1778970655000,-515.75260384,0.0004,2]
[422468597,1778970655000,-1074.43369825,0.0004,2]
[422468601,1778970655000,-952.45,0.0004,90]
[422468595,1778970655000,-2175.0,0.0004,20]
[422468599,1778970655000,-610.46505665,0.0004,2]
[422468598,1778970655000,-30150.68713461,0.0004,2]
[422468600,1778970655000,-1544.95,0.0004,90]
[422468603,1778970655000,-208.44072055,0.0004,120]
[422468614,1778970655000,-195.276238,0.0004,30]
[422468607,1778970655000,-199.293253,0.0004,30]
[422468608,1778970655000,-199.293253,0.0004,30]
[422468605,1778970655000,-199.293253,0.0004,30]
[422468592,1778970655000,-164.04170104,0.0004,2]
[422468641,1778970655000,-305.660067,0.0004,30]
[422468684,1778970655000,-151.0,0.00040084,30]
[422468649,1778970655000,-627.669364,0.0004,30]
[422468676,1778970655000,-213.37737141,0.00040043,2]
[422468680,1778970655000,-165.407147,0.00040071,30]
[422468679,1778970655000,-151.0,0.00040071,30]
[422468677,1778970655000,-2312.0,0.00040046,11]
[422468682,1778970655000,-151.0,0.00040071,30]
[422468690,1778970655000,-151.428047,0.00040084,30]
[422468681,1778970655000,-151.0,0.00040071,30]
[422468683,1778970655000,-151.0,0.00040081,14]
[422468685,1778970655000,-151.0,0.00040084,30]
[422468704,1778970655000,-151.0,0.00040084,10]
[422468689,1778970655000,-151.0,0.00040084,30]
[422468686,1778970655000,-151.0,0.00040084,30]
[422468688,1778970655000,-151.428047,0.00040084,30]
[422468675,1778970655000,-4725.51658682,0.00040035,120]
[422468691,1778970655000,-151.0,0.00040084,20]
[422468702,1778970655000,-151.0,0.00040084,30]
[422468695,1778970655000,-151.428047,0.00040084,30]
[422468692,1778970655000,-151.0,0.00040084,30]
[422468703,1778970655000,-151.0,0.00040084,30]
[422468693,1778970655000,-151.428047,0.00040084,30]
[422468696,1778970655000,-151.0,0.00040084,30]
[422468701,1778970655000,-151.0,0.00040084,30]
[422468697,1778970655000,-1000.0,0.00040084,90]
[422468700,1778970655000,-151.0,0.00040084,30]
[422468699,1778970655000,-151.0,0.00040084,30]
[422468698,1778970655000,-151.0,0.00040084,30]
[422468705,1778970655000,-284.289204,0.00040084,30]
[422468644,1778970655000,-463.691199,0.0004,30]
[422468694,1778970655000,-232.716665,0.00040084,20]
[422468669,1778970655000,-151.0,0.0004,30]
[422468687,1778970655000,-151.0,0.00040084,30]
[422468672,1778970655000,-153.16793018,0.00040008,30]
[422468646,1778970655000,-215.03962261,0.0004,10]
[422468678,1778970655000,-151.0,0.00040068,14]
[422468653,1778970655000,-184.204153,0.0004,30]
[422468645,1778970655000,-1500.0,0.0004,32]
[422468643,1778970655000,-463.691199,0.0004,30]
[422468652,1778970655000,-184.204153,0.0004,30]
[422468647,1778970655000,-627.669364,0.0004,30]
[422468642,1778970655000,-463.691199,0.0004,30]
[422468650,1778970655000,-627.669364,0.0004,30]
[422468651,1778970655000,-184.204153,0.0004,30]
[422468655,1778970655000,-2253.194383,0.0004,7]
[422468665,1778970655000,-157.143938,0.0004,30]
[422468659,1778970655000,-448.43651,0.0004,30]
[422468657,1778970655000,-448.43651,0.0004,30]
[422468656,1778970655000,-2253.194383,0.0004,7]
[422468648,1778970655000,-627.669364,0.0004,30]
[422468674,1778970655000,-1000.0,0.0004002,90]
[422468668,1778970655000,-240.725161,0.0004,30]
[422468654,1778970655000,-184.204153,0.0004,30]
[422468673,1778970655000,-2312.0,0.00040016,11]
[422468670,1778970655000,-240.725161,0.0004,30]
[422468671,1778970655000,-151.0,0.0004,30]
[422468662,1778970655000,-448.43651,0.0004,30]
[422468667,1778970655000,-240.725161,0.0004,30]
[422468664,1778970655000,-157.143938,0.0004,30]
[422468660,1778970655000,-2253.194383,0.0004,7]
[422468663,1778970655000,-157.143938,0.0004,30]
[422468666,1778970655000,-157.143938,0.0004,30]
[422468658,1778970655000,-2253.194383,0.0004,7]
[422468661,1778970655000,-448.43651,0.0004,30]
[422468747,1778970656000,-152.939565,0.00040291,30]
[422468757,1778970656000,-1890.2768412,0.00040292,2]
[422468755,1778970656000,-100549.4039062,0.00040292,2]
[422468753,1778970656000,-438022.3113753,0.00040292,2]
[422468752,1778970656000,-300.0,0.00040291,5]
[422468756,1778970656000,-9009.9446807,0.00040292,2]
[422468734,1778970656000,-152.0,0.00040236,3]
[422468744,1778970656000,-152.0,0.00040291,120]
[422468745,1778970656000,-151.0,0.00040291,30]
[422468740,1778970656000,-1675.19,0.0004029,60]
[422468737,1778970656000,-569.00017186,0.00040281,120]
[422468754,1778970656000,-129872.5884788,0.00040292,2]
[422468748,1778970656000,-300.0,0.00040291,5]
[422468751,1778970656000,-300.0,0.00040291,5]
[422468768,1778970656000,-2005.9555727,0.00040341,30]
[422468750,1778970656000,-300.0,0.00040291,5]
[422468749,1778970656000,-300.0,0.00040291,5]
[422468759,1778970656000,-245.7,0.000403,29]
[422468769,1778970656000,-320.52040482,0.00040342,120]
[422468758,1778970656000,-472.14488087,0.000403,120]
[422468760,1778970656000,-2000.0,0.000403,7]
[422468770,1778970656000,-150.0,0.00040344,2]
[422468761,1778970656000,-3033.15196717,0.000403,2]
[422468771,1778970656000,-3312.41775212,0.00040344,2]
[422468762,1778970656000,-194.168,0.000403,42]
[422468764,1778970656000,-2622.94758126,0.000403,2]
[422468765,1778970656000,-150.0,0.00040312,6]
[422468766,1778970656000,-436.65,0.00040312,10]
[422468736,1778970656000,-1000.0,0.00040276,90]
[422468746,1778970656000,-151.0,0.00040291,30]
[422468735,1778970656000,-19827.2,0.0004027,15]
[422468706,1778970656000,-284.289204,0.00040084,30]
[422468738,1778970656000,-2702.19,0.0004029,60]
[422468715,1778970656000,-1378.64683166,0.00040189,2]
[422468707,1778970656000,-284.289204,0.00040084,30]
[422468763,1778970656000,-2325.81194967,0.000403,2]
[422468716,1778970656000,-1391.15109988,0.00040189,7]
[422468709,1778970656000,-2104.65,0.000401,2]
[422468708,1778970656000,-284.289204,0.00040084,30]
[422468712,1778970656000,-163.0,0.00040129,11]
[422468710,1778970656000,-391.71765849,0.00040115,2]
[422468711,1778970656000,-165.29041115,0.00040117,2]
[422468713,1778970656000,-1000.0,0.00040129,90]
[422468714,1778970656000,-1000.0,0.00040169,90]
[422468717,1778970656000,-1592.98310658,0.00040189,7]
[422468720,1778970656000,-900.0,0.00040194,15]
[422468721,1778970656000,-900.0,0.00040194,15]
[422468719,1778970656000,-800.0,0.00040194,15]
[422468722,1778970656000,-900.0,0.00040194,15]
[422468723,1778970656000,-900.0,0.00040194,15]
[422468733,1778970656000,-4725.51658682,0.00040231,120]
[422468732,1778970656000,-151.0,0.000402,120]
[422468731,1778970656000,-152.0,0.000402,120]
[422468730,1778970656000,-163.8,0.000402,28]
[422468743,1778970656000,-418.0,0.00040291,120]
[422468742,1778970656000,-155.0,0.00040291,120]
[422468739,1778970656000,-462.3,0.0004029,60]
[422468741,1778970656000,-3397.24,0.0004029,60]
[422468728,1778970656000,-4725.51658682,0.00040194,120]
[422468726,1778970656000,-900.0,0.00040194,15]
[422468725,1778970656000,-900.0,0.00040194,15]
[422468724,1778970656000,-900.0,0.00040194,15]
[422468718,1778970656000,-2312.0,0.00040193,11]
[422468727,1778970656000,-900.0,0.00040194,15]
[422468729,1778970656000,-150.0,0.000402,28]
[422468767,1778970656000,-470.06119019,0.00040317,2]
[422468783,1778970656000,-1000.0,0.00040344,2]
[422468775,1778970656000,-2292.88047969,0.00040344,2]
[422468808,1778970656000,-406.85,0.00040356,120]
[422468814,1778970656000,-200.0,0.00040359,2]
[422468811,1778970656000,-309.72566823,0.00040356,120]
[422468812,1778970656000,-200.0,0.00040359,2]
[422468810,1778970656000,-406.85,0.00040356,120]
[422468816,1778970656000,-200.0,0.00040359,2]
[422468826,1778970656000,-200.0,0.00040359,2]
[422468817,1778970656000,-200.0,0.00040359,2]
[422468824,1778970656000,-156.0,0.00040359,2]
[422468815,1778970656000,-200.0,0.00040359,2]
[422468819,1778970656000,-200.0,0.00040359,2]
[422468821,1778970656000,-200.0,0.00040359,2]
[422468822,1778970656000,-200.0,0.00040359,2]
[422468818,1778970656000,-200.0,0.00040359,2]
[422468806,1778970656000,-406.85,0.00040356,120]
[422468820,1778970656000,-200.0,0.00040359,2]
[422468825,1778970656000,-200.0,0.00040359,2]
[422468828,1778970656000,-200.0,0.00040359,2]
[422468838,1778970656000,-200.0,0.00040359,2]
[422468832,1778970656000,-200.0,0.00040359,2]
[422468834,1778970656000,-200.0,0.00040359,2]
[422468839,1778970656000,-200.0,0.00040359,2]
[422468827,1778970656000,-200.0,0.00040359,2]
[422468773,1778970656000,-17297.33122518,0.00040344,2]
[422468831,1778970656000,-200.0,0.00040359,2]
[422468830,1778970656000,-200.0,0.00040359,2]
[422468835,1778970656000,-200.0,0.00040359,2]
[422468833,1778970656000,-200.0,0.00040359,2]
[422468836,1778970656000,-200.0,0.00040359,2]
[422468837,1778970656000,-200.0,0.00040359,2]
[422468823,1778970656000,-200.0,0.00040359,2]
[422468805,1778970656000,-406.85,0.00040356,120]
[422468829,1778970656000,-200.0,0.00040359,2]
[422468809,1778970656000,-406.85,0.00040356,120]
[422468807,1778970656000,-406.85,0.00040356,120]
[422468780,1778970656000,-1000.0,0.00040344,2]
[422468778,1778970656000,-1000.0,0.00040344,2]
[422468772,1778970656000,-150.0,0.00040344,2]
[422468774,1778970656000,-150.0,0.00040344,2]
[422468777,1778970656000,-1000.0,0.00040344,2]
[422468784,1778970656000,-1000.0,0.00040344,2]
[422468776,1778970656000,-321.60622561,0.00040344,2]
[422468779,1778970656000,-1000.0,0.00040344,2]
[422468781,1778970656000,-1000.0,0.00040344,2]
[422468782,1778970656000,-1000.0,0.00040344,2]
[422468787,1778970656000,-151.0,0.00040344,30]
[422468797,1778970656000,-406.85,0.00040356,120]
[422468800,1778970656000,-406.85,0.00040356,120]
[422468788,1778970656000,-238.32596129,0.00040344,2]
[422468785,1778970656000,-1000.0,0.00040344,2]
[422468786,1778970656000,-1003.42621503,0.00040344,2]
[422468799,1778970656000,-406.85,0.00040356,120]
[422468804,1778970656000,-406.85,0.00040356,120]
[422468813,1778970656000,-200.0,0.00040359,2]
[422468802,1778970656000,-406.85,0.00040356,120]
[422468801,1778970656000,-406.85,0.00040356,120]
[422468793,1778970656000,-500.0,0.00040356,60]
[422468794,1778970656000,-500.0,0.00040356,60]
[422468803,1778970656000,-406.85,0.00040356,120]
[422468790,1778970656000,-569.03185423,0.00040344,2]
[422468796,1778970656000,-406.85,0.00040356,120]
[422468792,1778970656000,-500.0,0.00040356,60]
[422468791,1778970656000,-2000.0,0.00040344,120]
[422468789,1778970656000,-447.55042311,0.00040344,30]
[422468795,1778970656000,-406.85,0.00040356,120]
[422468798,1778970656000,-406.85,0.00040356,120]
[422468873,1778970657000,-151.0,0.0004037,30]
[422468871,1778970657000,-151.428047,0.0004037,30]
[422468870,1778970657000,-151.0,0.0004037,30]
[422468869,1778970657000,-151.428047,0.0004037,30]
[422468872,1778970657000,-151.0,0.0004037,20]
[422468874,1778970657000,-151.428047,0.0004037,30]
[422468867,1778970657000,-4725.51658682,0.00040362,120]
[422468868,1778970657000,-200.0,0.0004037,2]
[422468865,1778970657000,-200.0,0.00040359,2]
[422468875,1778970657000,-151.428047,0.0004037,30]
[422468878,1778970657000,-200.0,0.0004037,2]
[422468889,1778970657000,-284.289204,0.0004038,30]
[422468886,1778970657000,-151.0,0.0004038,10]
[422468884,1778970657000,-151.0,0.0004038,30]
[422468883,1778970657000,-151.0,0.0004038,30]
[422468880,1778970657000,-151.0,0.0004038,30]
[422468881,1778970657000,-151.0,0.0004038,30]
[422468890,1778970657000,-284.289204,0.0004038,30]
[422468887,1778970657000,-284.289204,0.0004038,30]
[422468888,1778970657000,-284.289204,0.0004038,30]
[422468885,1778970657000,-151.0,0.0004038,30]
[422468882,1778970657000,-151.0,0.0004038,30]
[422468876,1778970657000,-151.0,0.0004037,30]
[422468879,1778970657000,-200.0,0.0004037,2]
[422468866,1778970657000,-200.0,0.00040359,2]
[422468846,1778970657000,-200.0,0.00040359,2]
[422468862,1778970657000,-200.0,0.00040359,2]
[422468891,1778970657000,-151.0,0.0004038,30]
[422468841,1778970657000,-200.0,0.00040359,2]
[422468844,1778970657000,-200.0,0.00040359,2]
[422468840,1778970657000,-200.0,0.00040359,2]
[422468842,1778970657000,-200.0,0.00040359,2]
[422468851,1778970657000,-200.0,0.00040359,2]
[422468843,1778970657000,-200.0,0.00040359,2]
[422468845,1778970657000,-200.0,0.00040359,2]
[422468847,1778970657000,-200.0,0.00040359,2]
[422468848,1778970657000,-200.0,0.00040359,2]
[422468850,1778970657000,-200.0,0.00040359,2]
[422468877,1778970657000,-200.0,0.0004037,2]
[422468849,1778970657000,-200.0,0.00040359,2]
[422468854,1778970657000,-200.0,0.00040359,2]
[422468853,1778970657000,-200.0,0.00040359,2]
[422468858,1778970657000,-200.0,0.00040359,2]
[422468860,1778970657000,-200.0,0.00040359,2]
[422468859,1778970657000,-200.0,0.00040359,2]
[422468855,1778970657000,-200.0,0.00040359,2]
[422468864,1778970657000,-200.0,0.00040359,2]
[422468863,1778970657000,-200.0,0.00040359,2]
[422468857,1778970657000,-200.0,0.00040359,2]
[422468856,1778970657000,-200.0,0.00040359,2]
[422468861,1778970657000,-334.0,0.00040359,2]
[422468852,1778970657000,-200.0,0.00040359,2]
[422468892,1778970657000,-500.0,0.0004038,3]
[422468897,1778970657000,-199.293253,0.0004038,30]
[422468930,1778970657000,-305.660067,0.0004038,30]
[422468924,1778970657000,-279.30719,0.0004038,28]
[422468920,1778970657000,-374.778137,0.0004038,30]
[422468926,1778970657000,-305.660067,0.0004038,30]
[422468938,1778970657000,-151.0,0.0004038,3]
[422468927,1778970657000,-305.660067,0.0004038,30]
[422468937,1778970657000,-500.0,0.0004038,3]
[422468935,1778970657000,-151.0,0.0004038,3]
[422468934,1778970657000,-151.0,0.0004038,3]
[422468932,1778970657000,-463.691199,0.0004038,30]
[422468929,1778970657000,-463.691199,0.0004038,30]
[422468936,1778970657000,-151.0,0.0004038,3]
[422468923,1778970657000,-279.30719,0.0004038,28]
[422468933,1778970657000,-151.0,0.0004038,3]
[422468940,1778970657000,-152.244038,0.0004038,3]
[422468939,1778970657000,-463.691199,0.0004038,30]
[422468947,1778970657000,-184.204153,0.0004038,30]
[422468942,1778970657000,-206.0,0.0004038,120]
[422468943,1778970657000,-627.669364,0.0004038,30]
[422468946,1778970657000,-627.669364,0.0004038,30]
[422468945,1778970657000,-627.669364,0.0004038,30]
[422468944,1778970657000,-627.669364,0.0004038,30]
[422468941,1778970657000,-463.691199,0.0004038,30]
[422468901,1778970657000,-2123.786567,0.0004038,30]
[422468948,1778970657000,-184.204153,0.0004038,30]
[422468931,1778970657000,-151.0,0.0004038,3]
[422468922,1778970657000,-279.30719,0.0004038,28]
[422468928,1778970657000,-305.660067,0.0004038,30]
[422468925,1778970657000,-279.30719,0.0004038,28]
[422468900,1778970657000,-199.293253,0.0004038,30]
[422468894,1778970657000,-500.0,0.0004038,3]
[422468896,1778970657000,-151.0,0.0004038,30]
[422468895,1778970657000,-500.0,0.0004038,3]
[422468898,1778970657000,-199.293253,0.0004038,30]
[422468899,1778970657000,-199.293253,0.0004038,30]
[422468893,1778970657000,-500.0,0.0004038,3]
[422468903,1778970657000,-2123.786567,0.0004038,30]
[422468921,1778970657000,-374.778137,0.0004038,30]
[422468904,1778970657000,-2123.786567,0.0004038,30]
[422468913,1778970657000,-1402.46752,0.0004038,30]
[422468914,1778970657000,-151.0,0.0004038,30]
[422468905,1778970657000,-195.276238,0.0004038,30]
[422468902,1778970657000,-2123.786567,0.0004038,30]
[422468918,1778970657000,-374.778137,0.0004038,30]
[422468908,1778970657000,-195.276238,0.0004038,30]
[422468911,1778970657000,-167.32677,0.0004038,30]
[422468909,1778970657000,-167.32677,0.0004038,30]
[422468910,1778970657000,-167.32677,0.0004038,30]
[422468907,1778970657000,-195.276238,0.0004038,30]
[422468912,1778970657000,-167.32677,0.0004038,30]
[422468916,1778970657000,-1402.46752,0.0004038,30]
[422468915,1778970657000,-1402.46752,0.0004038,30]
[422468919,1778970657000,-374.778137,0.0004038,30]
[422468917,1778970657000,-1402.46752,0.0004038,30]
[422468906,1778970657000,-195.276238,0.0004038,30]
[422468995,1778970658000,-30913.18229534,0.0004038,2]
[422468989,1778970658000,-2259.96148756,0.0004038,2]
[422468986,1778970658000,-561.87096738,0.0004038,2]
[422468987,1778970658000,-1036.8033632,0.0004038,2]
[422468981,1778970658000,-3926.80441961,0.0004038,2]
[422468983,1778970658000,-493.48745397,0.0004038,2]
[422468980,1778970658000,-1100.0,0.0004038,2]
[422468982,1778970658000,-934.69089973,0.0004038,2]
[422468984,1778970658000,-631.2208366,0.0004038,2]
[422468979,1778970658000,-1804.38270686,0.0004038,2]
[422468990,1778970658000,-75935.35167486,0.0004038,2]
[422468978,1778970658000,-350.54620163,0.0004038,2]
[422468994,1778970658000,-1145.98575609,0.0004038,2]
[422469005,1778970658000,-2228.89428584,0.0004038,2]
[422468998,1778970658000,-20850.92279802,0.0004038,2]
[422468988,1778970658000,-373.83851734,0.0004038,2]
[422468997,1778970658000,-412.5807123,0.0004038,2]
[422468992,1778970658000,-15211.96243125,0.0004038,2]
[422468991,1778970658000,-12574.05501763,0.0004038,2]
[422468996,1778970658000,-280.04727447,0.0004038,2]
[422469000,1778970658000,-207.92234551,0.0004038,2]
[422469002,1778970658000,-289.87151216,0.0004038,2]
[422469001,1778970658000,-884.93425742,0.0004038,2]
[422468999,1778970658000,-2501.50415173,0.0004038,2]
[422469004,1778970658000,-1150.2827993,0.0004038,2]
[422469003,1778970658000,-5845.85263027,0.0004038,2]
[422468977,1778970658000,-2500.0,0.0004038,2]
[422468993,1778970658000,-1882.3137139,0.0004038,2]
[422468976,1778970658000,-500.0,0.0004038,7]
[422468949,1778970658000,-167.0,0.0004038,120]
[422468985,1778970658000,-1626.56872895,0.0004038,2]
[422469009,1778970658000,-610.0,0.0004038,2]
[422468951,1778970658000,-184.204153,0.0004038,30]
[422468961,1778970658000,-157.143938,0.0004038,30]
[422468952,1778970658000,-151.0,0.0004038,120]
[422468953,1778970658000,-458.32238731,0.0004038,120]